bitfinex-derivatives/quotes_SOLF0:USTF0_20250818
["timestamp","ask_amount","ask_price","bid_price","bid_amount"]
[1755503840901,22.79783717,180.55,180.45,3.1]
[1755503841102,9.89545164,180.54,180.45,3.1]
[1755503841403,9.89545164,180.53,180.45,3.1]
[1755503841609,5.42772743,180.52,180.45,3.1]
[1755503841901,5.42772743,180.51,180.45,3.1]
[1755503842100,4.04324458,180.5,180.45,3.1]
[1755503842301,4.04324458,180.49,180.45,3.1]
[1755503842499,4.04324458,180.48,180.45,3.1]
[1755503842703,22.79783717,180.55,180.45,3.1]
[1755503842902,9.89361307,180.54,180.45,3.1]
[1755503843200,9.89361307,180.53,180.45,3.1]
[1755503843403,5.42686425,180.52,180.45,3.1]
[1755503843601,5.42686425,180.51,180.45,3.1]
[1755503843797,4.0423814,180.5,180.45,3.1]
[1755503843997,4.0423814,180.49,180.45,3.1]
[1755503844201,4.0423814,180.48,180.45,3.1]
[1755503844401,22.79783717,180.55,180.45,3.1]
[1755503844597,9.895784,180.54,180.45,3.1]
[1755503844803,9.895784,180.53,180.45,3.1]
[1755503844998,5.42787509,180.52,180.45,3.1]
[1755503845202,5.42787509,180.51,180.45,3.1]
[1755503845505,4.04344311,180.5,180.45,3.1]
[1755503845802,4.04344311,180.49,180.42,2.97]
[1755503846010,4.04344311,180.48,180.42,2.97]
[1755503846201,4.04344311,180.47,180.42,2.97]
[1755503846400,4.04344311,180.46,180.42,2.97]
[1755503846700,4.04344311,180.45,180.42,2.97]
[1755503847007,4.60381967,180.51,180.42,2.97]
[1755503847301,9.89092735,180.5,180.42,2.97]
[1755503847506,5.42558066,180.49,180.42,2.97]
[1755503847708,5.42558066,180.48,180.42,2.97]
[1755503848005,4.04094393,180.47,180.42,2.97]
[1755503848307,4.04094393,180.46,180.42,2.97]
[1755503848507,4.04094393,180.45,180.4,2.97]
[1755503848701,4.04094393,180.44,180.4,2.97]
[1755503848897,27.40165684,180.51,180.4,2.97]
[1755503849102,9.89103549,180.5,180.4,2.97]
[1755503849303,9.89103549,180.49,180.4,2.97]
[1755503849502,5.42637732,180.48,180.4,2.97]
[1755503849704,5.42637732,180.47,180.4,2.97]
[1755503850005,4.04167681,180.46,180.4,2.97]
[1755503850204,4.04167681,180.45,180.4,2.97]
[1755503850406,6.15783717,180.51,180.4,2.97]
[1755503850616,5.42666549,180.5,180.42,4.60381967]
[1755503850819,4.04197787,180.49,180.43,2.97]
[1755503851017,4.04197787,180.48,180.43,2.97]
[1755503851213,4.04197787,180.47,180.43,2.97]
[1755503851413,4.04197787,180.46,180.43,2.97]
[1755503851717,6.15783717,180.55,180.45,4.60381967]
[1755503851918,9.89810149,180.54,180.46,2.97]
[1755503852111,9.89810149,180.53,180.46,2.97]
[1755503852312,5.42957422,180.52,180.46,2.97]
[1755503852513,4.04515393,180.51,180.46,2.97]
[1755503852719,4.04515393,180.5,180.46,2.97]
[1755503852915,4.04515393,180.49,180.46,2.97]
[1755503853115,4.04515393,180.48,180.46,2.97]
[1755503853320,6.15783717,180.55,180.46,2.97]
[1755503853519,9.8973641,180.54,180.46,2.97]
[1755503853818,9.8973641,180.53,180.46,2.97]
[1755503854018,5.42913957,180.52,180.46,2.97]
[1755503854222,4.04470641,180.51,180.46,2.97]
[1755503854416,4.04470641,180.5,180.46,2.97]
[1755503854719,4.04470641,180.49,180.46,2.97]
[1755503855020,4.04470641,180.48,180.46,2.97]
[1755503855223,6.15783717,180.55,180.46,2.97]
[1755503855518,9.89912104,180.54,180.46,2.97]
[1755503855719,9.89912104,180.53,180.46,2.97]
[1755503855919,5.42991237,180.52,180.46,2.97]
[1755503856218,4.04549208,180.51,180.46,2.97]
[1755503856419,4.04549208,180.5,180.46,2.97]
[1755503856620,4.04549208,180.49,180.46,2.97]
[1755503856816,4.04549208,180.48,180.46,2.97]
[1755503857016,6.15783717,180.55,180.46,2.97]
[1755503857320,9.90502441,180.54,180.46,2.97]
[1755503857519,9.90502441,180.53,180.46,2.97]
[1755503857716,5.4300971,180.52,180.46,2.97]
[1755503857915,4.04567681,180.51,180.46,2.97]
[1755503858118,4.04567681,180.5,180.46,2.97]
[1755503858318,4.04567681,180.49,180.46,2.97]
[1755503858513,4.04567681,180.48,180.46,2.97]
[1755503858720,6.15783717,180.55,180.46,2.97]
[1755503858921,16.06299992,180.54,180.46,2.97]
[1755503859118,9.90516275,180.53,180.46,2.97]
[1755503859317,5.43023709,180.52,180.46,2.97]
[1755503859518,5.43023709,180.51,180.46,2.97]
[1755503859718,4.0458168,180.5,180.46,2.97]
[1755503859920,4.0458168,180.49,180.46,2.97]
[1755503860223,4.0458168,180.48,180.46,2.97]
[1755503860420,6.15783717,180.54,180.46,2.97]
[1755503860722,9.90476295,180.53,180.46,2.97]
[1755503860923,5.43004939,180.52,180.46,2.97]
[1755503861123,5.43004939,180.51,180.46,2.97]
[1755503861318,22.79783717,180.54,180.46,2.97]
[1755503861319,4.04561623,180.5,180.46,2.97]
[1755503861514,4.04561623,180.49,180.46,2.97]
[1755503861719,4.04561623,180.48,180.46,2.97]
[1755503861919,4.04561623,180.47,180.46,2.97]
[1755503862120,22.79783717,180.54,180.46,2.97]
[1755503862419,13.84057543,180.56,180.46,2.97]
[1755503862420,5.85995785,180.53,180.46,2.97]
[1755503862618,9.90627398,180.52,180.46,2.97]
[1755503862824,1.38448404,180.51,180.46,2.97]
[1755503863524,22.79490392,180.54,180.46,2.97]
[1755503863724,4.04645858,180.5,180.46,2.97]
[1755503863926,16.64,180.54,180.46,2.97]
[1755503864123,5.86039933,180.53,180.46,2.97]
[1755503864323,5.86039933,180.52,180.46,2.97]
[1755503864625,5.43147511,180.51,180.46,2.97]
[1755503864824,4.04699282,180.5,180.46,2.97]
[1755503865125,4.04699282,180.49,180.46,2.97]
[1755503865321,4.04699282,180.48,180.46,2.97]
[1755503865520,4.04699282,180.47,180.46,2.97]
[1755503874826,4.04699282,180.47,180.38,4.60381967]
[1755503875034,6.15593044,180.5,180.45,3.17]
[1755503875035,4.04699282,180.46,180.45,3.17]
[1755503876030,5.43169564,180.46,180.45,3.17]
[1755503876232,5.43169564,180.46,180.44,3.17]
[1755503876429,4.04699282,180.45,180.44,3.17]
[1755503879132,4.04699282,180.45,180.38,4.60381967]
[1755503879327,4.04699282,180.44,180.39,3.17]
[1755503879533,4.04699282,180.43,180.39,3.17]
[1755503879732,4.04699282,180.42,180.39,3.17]
[1755503879932,6.15593044,180.49,180.39,3.17]
[1755503880133,9.90913758,180.48,180.39,3.17]
[1755503880432,9.90913758,180.47,180.39,3.17]
[1755503880634,5.43180247,180.46,180.39,3.17]
[1755503880932,4.04703587,180.45,180.39,3.17]
[1755503881134,4.04703587,180.44,180.39,3.17]
[1755503881332,4.04703587,180.43,180.39,3.17]
[1755503881631,4.04703587,180.42,180.39,3.17]
[1755503881832,6.15593044,180.49,180.39,3.17]
[1755503882031,9.90905909,180.48,180.39,3.17]
[1755503882230,9.90905909,180.47,180.39,3.17]
[1755503882431,4.04698158,180.46,180.39,3.17]
[1755503882636,4.04698158,180.45,180.39,3.17]
[1755503882837,4.04698158,180.44,180.39,3.17]
[1755503883032,4.04698158,180.43,180.39,3.17]
[1755503883335,6.15593044,180.5,180.39,3.17]
[1755503883533,9.90691871,180.49,180.39,3.17]
[1755503883740,9.90691871,180.48,180.39,3.17]
[1755503883934,5.43084779,180.47,180.39,3.17]
[1755503884133,6.15593044,180.5,180.39,3.17]
[1755503884134,4.04610696,180.46,180.39,3.17]
[1755503884336,4.04610696,180.45,180.4,3.17]
[1755503884638,22.79593044,180.52,180.42,3.17]
[1755503884832,9.9078223,180.51,180.42,3.17]
[1755503885035,9.9078223,180.5,180.42,3.17]
[1755503885234,5.43115171,180.49,180.42,3.17]
[1755503885431,4.04655099,180.48,180.42,3.17]
[1755503885638,4.04655099,180.47,180.42,3.17]
[1755503885837,4.04655099,180.46,180.42,3.17]
[1755503886040,6.15593044,180.52,180.42,3.17]
[1755503886240,9.91029205,180.51,180.42,3.17]
[1755503886441,9.91029205,180.5,180.42,3.17]
[1755503886740,5.43132551,180.49,180.42,3.17]
[1755503887041,4.04676311,180.48,180.43,3.17]
[1755503887244,4.04676311,180.47,180.43,3.17]
[1755503887543,4.04676311,180.46,180.43,3.17]
[1755503887841,6.15593044,180.52,180.43,3.17]
[1755503888142,9.91164659,180.51,180.43,3.17]
[1755503888338,5.43194275,180.5,180.43,3.17]
[1755503888538,6.15593044,180.52,180.43,3.17]
[1755503888539,4.04743123,180.49,180.43,3.17]
[1755503888740,4.04743123,180.48,180.43,3.17]
[1755503889042,4.04743123,180.47,180.43,3.17]
[1755503889341,4.04743123,180.46,180.43,3.17]
[1755503889643,6.15593044,180.52,180.43,3.17]
[1755503889844,9.91110373,180.51,180.43,3.17]
[1755503890042,5.4316964,180.5,180.43,3.17]
[1755503890342,4.04718488,180.49,180.43,3.17]
[1755503890544,4.04718488,180.48,180.43,3.17]
[1755503890741,4.04718488,180.47,180.43,3.17]
[1755503891036,4.04718488,180.46,180.43,3.17]
[1755503891246,85.44938079,180.53,180.45,3.17]
[1755503891442,5.43198147,180.52,180.49,3.17]
[1755503891645,4.04762321,180.51,180.49,3.17]
[1755503891841,4.04762321,180.5,180.49,3.17]
[1755503895040,6.15593044,180.58,180.49,3.73]
[1755503895247,9.91191759,180.57,180.52,3.17]
[1755503895536,4.04756641,180.56,180.55,3.17]
[1755503896337,6.15593044,180.63,180.55,3.17]
[1755503896538,9.90457265,180.62,180.55,3.17]
[1755503896739,5.42778848,180.61,180.55,3.17]
[1755503896946,4.0440179,180.6,180.55,3.17]
[1755503897144,4.0440179,180.59,180.55,3.17]
[1755503897341,4.0440179,180.58,180.55,3.17]
[1755503897540,6.15593044,180.65,180.55,3.17]
[1755503897740,9.89909984,180.64,180.55,3.17]
[1755503898035,9.89909984,180.63,180.55,3.17]
[1755503898238,4.0411803,180.62,180.55,3.17]
[1755503898444,4.0411803,180.61,180.55,3.17]
[1755503898744,4.0411803,180.6,180.55,3.17]
[1755503899046,4.0411803,180.59,180.55,3.17]
[1755503899249,143.25973247,180.66,180.55,3.17]
[1755503899442,9.89036708,180.65,180.55,3.17]
[1755503899648,143.25973247,180.66,180.58,3.17]
[1755503899649,4.03829361,180.64,180.58,3.17]
[1755503899843,4.03829361,180.63,180.59,4.60381967]
[1755503900044,4.03829361,180.62,180.6,3.17]
[1755503900344,0.96380203,180.66,180.6,3.17]
[1755503900545,4.03303523,180.65,180.6,3.17]
[1755503900744,4.03303523,180.64,180.6,3.17]
[1755503901046,4.03303523,180.63,180.6,3.17]
[1755503901349,4.03210968,180.62,180.59,3.17]
[1755503901542,4.03045371,180.61,180.59,3.17]
[1755503901744,0.96380203,180.66,180.56,7.77381967]
[1755503901942,5.41408509,180.65,180.57,3.17]
[1755503902138,4.03045372,180.64,180.57,3.17]
[1755503902342,4.03045372,180.63,180.57,3.17]
[1755503902543,4.03045372,180.62,180.57,3.17]
[1755503902743,4.03045372,180.61,180.57,3.17]
[1755503903048,4.03045372,180.6,180.57,3.17]
[1755503903255,4.03045372,180.59,180.57,3.17]
[1755503903550,11.72355214,180.66,180.57,3.17]
[1755503903742,9.8696425,180.65,180.57,3.17]
[1755503903943,5.4114594,180.64,180.57,3.17]
[1755503904143,4.02766338,180.63,180.57,3.17]
[1755503904346,4.02766338,180.62,180.53,4.60381967]
[1755503904548,4.02766338,180.61,180.58,2.99]
[1755503904749,4.02766338,180.6,180.58,2.99]
[1755503904950,5.5676217,180.66,180.58,2.99]
[1755503905149,9.87299698,180.65,180.58,2.99]
[1755503905349,5.41301603,180.64,180.58,2.99]
[1755503905539,4.029246,180.63,180.58,2.99]
[1755503905745,0.96380203,180.66,180.58,2.99]
[1755503905945,4.02883775,180.65,180.58,2.99]
[1755503906242,4.02883775,180.64,180.58,2.99]
[1755503906444,4.02883775,180.63,180.58,2.99]
[1755503906747,0.96380203,180.66,180.58,2.99]
[1755503906945,4.02733347,180.65,180.58,2.99]
[1755503907144,4.02733347,180.64,180.58,2.99]
[1755503907448,4.02733347,180.63,180.58,2.99]
[1755503907650,0.96380203,180.66,180.58,2.99]
[1755503907851,4.02692531,180.65,180.58,2.99]
[1755503908052,4.02692531,180.64,180.58,2.99]
[1755503908355,4.02692531,180.63,180.58,2.99]
[1755503908549,0.96380203,180.66,180.58,2.99]
[1755503908851,4.02624545,180.65,180.58,2.99]
[1755503909048,4.02624545,180.64,180.58,2.99]
[1755503909252,4.02624545,180.63,180.58,2.99]
[1755503909550,0.96380203,180.66,180.58,2.99]
[1755503909751,4.02712736,180.65,180.58,2.99]
[1755503909955,4.02712736,180.64,180.58,2.99]
[1755503910147,4.02712736,180.63,180.58,2.99]
[1755503910341,0.96380203,180.66,180.58,2.99]
[1755503910546,4.02627346,180.65,180.58,2.99]
[1755503910849,4.02627346,180.64,180.58,2.99]
[1755503911148,4.02627346,180.63,180.58,2.99]
[1755503911342,0.96380203,180.66,180.58,2.99]
[1755503911539,4.02551387,180.65,180.58,2.99]
[1755503911848,4.02551387,180.64,180.58,2.99]
[1755503912047,4.02551387,180.63,180.58,2.99]
[1755503912250,0.96380203,180.66,180.58,2.99]
[1755503912446,4.02517254,180.65,180.58,2.99]
[1755503912652,4.02517254,180.64,180.58,2.99]
[1755503912852,4.02517254,180.63,180.58,2.99]
[1755503913153,0.96380203,180.66,180.58,2.99]
[1755503913353,4.02538744,180.65,180.58,2.99]
[1755503913556,4.02538744,180.64,180.58,2.99]
[1755503913747,0.96380203,180.66,180.58,2.99]
[1755503913946,4.02471603,180.65,180.58,2.99]
[1755503914152,4.02471603,180.64,180.58,2.99]
[1755503914354,0.96380203,180.66,180.58,2.99]
[1755503914554,4.02413396,180.65,180.58,2.99]
[1755503914851,4.02413396,180.64,180.58,2.99]
[1755503915052,4.0228101,180.63,180.58,2.99]
[1755503915249,0.96380203,180.66,180.58,2.99]
[1755503915452,4.02295767,180.65,180.58,2.99]
[1755503915753,4.02295767,180.64,180.58,2.99]
[1755503915951,4.02295767,180.63,180.58,2.99]
[1755503916154,0.96380203,180.66,180.58,2.99]
[1755503916347,4.02386552,180.65,180.58,2.99]
[1755503916549,4.02386552,180.64,180.58,2.99]
[1755503916750,4.02386552,180.63,180.58,2.99]
[1755503916950,0.96380203,180.66,180.58,2.99]
[1755503917253,4.02351573,180.65,180.58,2.99]
[1755503917454,4.02351573,180.64,180.58,2.99]
[1755503917653,4.02351573,180.63,180.58,2.99]
[1755503917855,0.96380203,180.66,180.58,2.99]
[1755503918048,4.02270321,180.65,180.58,2.99]
[1755503918246,4.02270321,180.64,180.58,2.99]
[1755503918447,4.02270321,180.63,180.58,2.99]
[1755503918658,0.96380203,180.66,180.58,2.99]
[1755503918856,4.02274992,180.65,180.58,2.99]
[1755503919155,4.02274992,180.64,180.58,2.99]
[1755503919352,4.02274992,180.63,180.58,2.99]
[1755503919548,0.96380203,180.66,180.58,2.99]
[1755503919749,4.02365962,180.65,180.58,2.99]
[1755503919953,4.02365962,180.64,180.58,2.99]
[1755503920146,0.96380203,180.66,180.58,2.99]
[1755503920353,4.02366666,180.65,180.58,2.99]
[1755503920548,4.02366666,180.64,180.58,2.99]
[1755503920752,0.96380203,180.66,180.58,2.99]
[1755503920961,4.02462798,180.65,180.58,2.99]
[1755503921157,136.04,180.67,180.58,7.59381967]
[1755503921356,4.02477705,180.66,180.59,2.99]
[1755503921559,136.04,180.67,180.59,2.99]
[1755503921760,4.02521095,180.66,180.59,2.99]
[1755503921953,136.04,180.67,180.59,2.99]
[1755503922254,4.02522012,180.66,180.59,2.99]
[1755503922459,136.04,180.67,180.59,2.99]
[1755503922661,4.02596966,180.66,180.59,2.99]
[1755503922858,136.04,180.67,180.59,2.99]
[1755503923053,4.02596966,180.66,180.59,2.99]
[1755503923255,136.04,180.67,180.59,2.99]
[1755503923457,4.02670779,180.66,180.59,2.99]
[1755503923657,4.02670779,180.65,180.59,2.99]
[1755503923862,136.04,180.67,180.59,2.99]
[1755503924063,4.02670713,180.66,180.59,2.99]
[1755503924361,4.02670713,180.65,180.59,2.99]
[1755503924567,136.04,180.67,180.59,2.99]
[1755503924866,372.22,180.7,180.59,2.99]
[1755503925165,141.39016564,180.69,180.59,2.99]
[1755503925360,5.41016564,180.68,180.59,2.99]
[1755503925560,4.02681183,180.67,180.59,2.99]
[1755503925760,4.02681183,180.66,180.59,2.99]
[1755503925963,4.02681183,180.65,180.59,2.99]
[1755503926160,135.98,180.69,180.59,2.99]
[1755503926354,5.41004272,180.68,180.59,2.99]
[1755503926661,4.0266895,180.67,180.59,2.99]
[1755503926958,4.0266895,180.66,180.59,2.99]
[1755503927162,4.0266895,180.65,180.59,2.99]
[1755503927363,135.98,180.69,180.59,2.99]
[1755503927563,4.03048793,180.68,180.59,2.99]
[1755503927763,4.03048793,180.67,180.59,8.524]
[1755503927965,4.03048793,180.66,180.6,2.99]
[1755503928157,4.03048793,180.65,180.6,2.99]
[1755503928359,135.98,180.69,180.6,2.99]
[1755503928555,4.03035631,180.68,180.6,2.99]
[1755503928858,4.03035631,180.67,180.6,2.99]
[1755503929066,4.03035631,180.66,180.61,2.99]
[1755503929262,135.98,180.69,180.61,2.99]
[1755503929467,4.03366601,180.68,180.61,2.99]
[1755503929765,4.03366601,180.67,180.61,2.99]
[1755503929965,4.03366601,180.66,180.61,2.99]
[1755503930155,135.98,180.69,180.61,2.99]
[1755503930358,4.03366603,180.68,180.61,2.99]
[1755503930562,4.03366603,180.67,180.61,2.99]
[1755503930864,4.03366603,180.66,180.61,2.99]
[1755503931065,135.98,180.69,180.61,5.5334]
[1755503931269,4.03495431,180.68,180.62,2.99]
[1755503931568,4.03495431,180.67,180.62,2.99]
[1755503931866,4.03495431,180.66,180.62,2.99]
[1755503932069,135.98,180.69,180.62,2.99]
[1755503932269,4.0359294,180.68,180.62,2.99]
[1755503932457,4.0359294,180.67,180.62,2.99]
[1755503932756,4.0359294,180.66,180.62,2.99]
[1755503932960,135.98,180.69,180.62,2.99]
[1755503933168,4.03613969,180.68,180.62,2.99]
[1755503933464,4.03613969,180.67,180.62,2.99]
[1755503933662,4.03613969,180.66,180.62,2.99]
[1755503933964,135.98,180.69,180.62,2.99]
[1755503934168,4.03702578,180.68,180.62,2.99]
[1755503934367,4.03702578,180.67,180.62,2.99]
[1755503934565,4.03702578,180.66,180.62,2.99]
[1755503934766,4.03702578,180.65,180.62,2.99]
[1755503934967,135.98,180.69,180.62,2.99]
[1755503935164,5.42258798,180.68,180.62,2.99]
[1755503935357,4.03943175,180.67,180.61,4.60381967]
[1755503935558,4.03943175,180.66,180.62,3.05]
[1755503935863,4.03943175,180.65,180.62,3.05]
[1755503936064,135.98,180.69,180.62,3.05]
[1755503936366,5.42470111,180.68,180.62,3.05]
[1755503936569,4.04154488,180.67,180.62,3.05]
[1755503936866,4.04154488,180.66,180.62,3.05]
[1755503937067,4.04154488,180.65,180.62,3.05]
[1755503937266,135.98,180.69,180.62,3.05]
[1755503937466,5.42586564,180.68,180.62,3.05]
[1755503937769,5.42587153,180.67,180.62,3.05]
[1755503937970,4.04270941,180.66,180.62,3.05]
[1755503938266,135.98,180.69,180.62,3.05]
[1755503938267,4.04270941,180.65,180.62,3.05]
[1755503938571,4.04270941,180.64,180.63,3.05]
[1755503940671,5.42603632,180.64,180.56,3.05]
[1755503940863,5.42611069,180.63,180.56,3.05]
[1755503941070,6.15593044,180.67,180.56,3.05]
[1755503941071,4.04270941,180.62,180.56,3.05]
[1755503941269,4.04270941,180.61,180.56,5.535]
[1755503941568,4.04270941,180.6,180.57,3.05]
[1755503941770,4.04233861,180.59,180.57,3.05]
[1755503942068,6.15593044,180.66,180.57,3.05]
[1755503942272,9.89749362,180.65,180.57,3.05]
[1755503942573,9.89749362,180.64,180.57,3.05]
[1755503942771,5.42587613,180.63,180.57,3.05]
[1755503942973,4.04233653,180.62,180.57,3.05]
[1755503943168,4.04233653,180.61,180.57,3.05]
[1755503943369,4.04233653,180.6,180.57,3.05]
[1755503943568,6.15593044,180.67,180.57,3.05]
[1755503943768,9.89786806,180.66,180.57,3.05]
[1755503944078,9.89786806,180.65,180.57,3.05]
[1755503944269,4.04265242,180.64,180.57,5.5346]
[1755503944471,4.04265242,180.63,180.58,3.05]
[1755503944674,4.04265242,180.62,180.58,3.05]
[1755503944868,4.04265242,180.61,180.59,3.05]
[1755503945068,136.94354852,180.69,180.59,3.05]
[1755503945375,5.42544005,180.68,180.59,3.05]
[1755503945570,4.04212813,180.67,180.61,3.05]
[1755503945767,4.04212813,180.66,180.61,3.05]
[1755503945968,4.04212813,180.65,180.61,3.05]
[1755503946269,4.04212813,180.64,180.61,3.05]
[1755503946467,135.98,180.69,180.61,7.65381967]
[1755503946668,4.04084932,180.68,180.63,3.05]
[1755503946974,4.04084932,180.67,180.63,3.05]
[1755503947168,4.04084932,180.66,180.63,3.05]
[1755503947367,4.04084932,180.65,180.63,3.05]
[1755503947564,135.98,180.69,180.63,3.05]
[1755503947771,4.04081607,180.68,180.63,3.05]
[1755503948073,135.98,180.69,180.63,3.05]
[1755503948074,4.04081607,180.67,180.63,3.05]
[1755503948271,4.04081607,180.66,180.63,3.05]
[1755503948470,4.04081607,180.65,180.63,3.05]
[1755503948670,135.98,180.69,180.63,3.05]
[1755503948872,4.04191157,180.68,180.63,3.05]
[1755503949166,4.04191157,180.67,180.63,3.05]
[1755503949365,135.98,180.69,180.63,3.05]
[1755503949366,4.04191157,180.66,180.63,3.05]
[1755503949565,4.04191157,180.65,180.63,3.05]
[1755503949768,135.98,180.69,180.63,3.05]
[1755503949967,4.04220842,180.68,180.63,3.05]
[1755503950175,4.04220842,180.67,180.63,3.05]
[1755503950377,135.98,180.69,180.56,3.05]
[1755503950378,4.04220842,180.66,180.56,3.05]
[1755503950569,4.04220842,180.65,180.57,3.05]
[1755503950776,4.04220842,180.64,180.57,5.5345]
[1755503950977,4.04220842,180.63,180.58,3.05]
[1755503951175,142.13593044,180.69,180.58,3.05]
[1755503951375,9.89608064,180.68,180.58,3.05]
[1755503951578,9.89608064,180.67,180.58,3.05]
[1755503951774,5.42585119,180.66,180.58,3.05]
[1755503952080,4.04253125,180.65,180.58,3.05]
[1755503952282,4.04253125,180.64,180.58,3.05]
[1755503952580,4.04253125,180.63,180.58,3.05]
[1755503952782,4.04253125,180.62,180.58,3.05]
[1755503952985,4.04253125,180.61,180.58,3.05]
[1755503953283,4.04253125,180.6,180.58,3.05]
[1755503953483,6.15593044,180.67,180.58,3.05]
[1755503953685,9.90201692,180.66,180.58,3.05]
[1755503953984,9.90201692,180.65,180.58,3.05]
[1755503954182,5.42887469,180.64,180.58,3.05]
[1755503954383,4.04539781,180.63,180.58,3.05]
[1755503954582,4.04539781,180.62,180.58,3.05]
[1755503954883,4.04539781,180.61,180.58,3.05]
[1755503955085,164.23335199,180.68,180.58,3.05]
[1755503955286,9.90215937,180.67,180.58,3.05]
[1755503955487,9.90215937,180.66,180.58,3.05]
[1755503955687,5.42881408,180.65,180.58,3.05]
[1755503955888,4.04540085,180.64,180.58,3.05]
[1755503956186,4.04540085,180.63,180.58,3.05]
[1755503956387,4.04540085,180.62,180.58,3.05]
[1755503956587,4.04540085,180.61,180.58,3.05]
[1755503956788,164.23335199,180.68,180.58,3.05]
[1755503956988,9.89966931,180.67,180.58,3.05]
[1755503957186,9.89966931,180.66,180.58,3.05]
[1755503957491,5.42771499,180.65,180.58,3.05]
[1755503957682,4.04430766,180.64,180.58,3.05]
[1755503957884,4.04430766,180.63,180.58,3.05]
[1755503958083,4.04430766,180.62,180.58,3.05]
[1755503958290,4.04430766,180.61,180.56,3.05]
[1755503958596,4.04471604,180.6,180.56,3.05]
[1755503958787,10.75975011,180.67,180.56,5.535]
[1755503958987,9.90015791,180.66,180.57,3.05]
[1755503959194,9.90015791,180.65,180.57,3.05]
[1755503959392,5.42795586,180.64,180.57,3.05]
[1755503959592,4.04447893,180.63,180.57,3.05]
[1755503959796,4.04447893,180.62,180.57,3.05]
[1755503959994,4.04447893,180.61,180.57,3.05]
[1755503960297,4.04447893,180.6,180.57,3.05]
[1755503960495,10.75975011,180.67,180.57,3.05]
[1755503960693,9.90206464,180.66,180.57,3.05]
[1755503960893,9.90206464,180.65,180.57,3.05]
[1755503961200,5.42885279,180.64,180.57,3.05]
[1755503961400,4.04537586,180.63,180.57,3.05]
[1755503961599,4.04537586,180.62,180.57,3.05]
[1755503961797,4.04537586,180.61,180.57,3.05]
[1755503961995,4.04537586,180.6,180.57,3.05]
[1755503962201,6.15593044,180.66,180.57,3.05]
[1755503962493,9.90422753,180.65,180.57,3.05]
[1755503962700,9.90422753,180.64,180.57,3.05]
[1755503963000,5.42974324,180.63,180.57,3.05]
[1755503963203,5.42974324,180.62,180.57,3.05]
[1755503963403,4.04625336,180.61,180.57,3.05]
[1755503963603,4.04625336,180.6,180.57,3.05]
[1755503963808,4.04625336,180.59,180.57,3.05]
[1755503964001,6.15593044,180.65,180.57,3.05]
[1755503964305,9.90498323,180.64,180.57,3.05]
[1755503964603,9.90498323,180.63,180.57,3.05]
[1755503964801,5.43032044,180.62,180.57,3.05]
[1755503965001,4.0467291,180.61,180.57,3.05]
[1755503965201,4.0467291,180.6,180.57,3.05]
[1755503965397,4.0467291,180.59,180.57,3.05]
[1755503965593,6.15593044,180.65,180.57,3.05]
[1755503965797,9.90563297,180.64,180.57,3.05]
[1755503966007,9.90563297,180.63,180.57,3.05]
[1755503966204,5.43050014,180.62,180.57,3.05]
[1755503966400,4.04690879,180.61,180.57,3.05]
[1755503966601,4.04690879,180.6,180.57,3.05]
[1755503966905,6.15593044,180.66,180.57,3.05]
[1755503967100,9.90531524,180.65,180.57,3.05]
[1755503967299,9.90531524,180.64,180.57,3.05]
[1755503967604,4.04700782,180.63,180.57,3.05]